fUSD/lending_fUSD_20240629
["ID","MTS","AMOUNT","RATE_DAILY","PERIOD"]
[330633901,1719673844670,-182.44464907,0.00018,2]
[330633902,1719673844680,-182.44464907,0.00018,2]
[330633903,1719673844689,-182.44464907,0.00018,2]
[330633904,1719673844699,-182.44464907,0.00018,2]
[330633905,1719673844708,-182.44464907,0.00018,2]
[330633906,1719673844718,-182.44464907,0.00018,2]
[330633907,1719673844728,-182.44464907,0.00018,2]
[330633908,1719673844737,-182.44464907,0.00018,2]
[330633909,1719673844751,-182.44464907,0.00018,2]
[330633910,1719673844760,-182.44464907,0.00018,2]
[330633911,1719673844770,-182.44464907,0.00018,2]
[330633912,1719673844779,-182.44464907,0.00018,2]
[330633913,1719673844791,-150.0,0.0001807,2]
[330633914,1719673844800,-520.06850352,0.00018081,2]
[330633915,1719673844810,-155.50003618,0.00018081,2]
[330633916,1719673844819,-307.59113526,0.00018081,2]
[330633917,1719673844828,-150.0,0.00018128,2]
[330633918,1719673844838,-151.0,0.00018128,2]
[330633919,1719673844847,-151.0,0.00018128,2]
[330633920,1719673844857,-151.0,0.00018128,2]
[330633921,1719673844866,-358.0,0.00018128,2]
[330633922,1719673844877,-1820.0,0.00018128,2]
[330633923,1719673844887,-448.0,0.00018128,2]
[330633924,1719673844897,-812.0,0.00018128,2]
[330633925,1719673844907,-618.0,0.00018128,2]
[330633926,1719673844916,-442.0,0.00018128,2]
[330633927,1719673844926,-166.0,0.00018128,2]
[330633928,1719673844936,-151.057,0.00018128,2]
[330633929,1719673844946,-150.0,0.00018166,2]
[330633930,1719673844955,-150.0,0.00018261,2]
[330633931,1719673844965,-715.55227,0.0001834,2]
[330633932,1719673844975,-150.0,0.00018356,2]
[330633933,1719673844985,-256.39919956,0.00018427,2]
[330633934,1719673844995,-284.85570489,0.00018432,2]
[330633935,1719673845005,-150.0,0.00018451,2]
[330633936,1719673845015,-1873.93904552,0.00018487,2]
[330633937,1719673845026,-250.0,0.00018492,2]
[330633938,1719673845036,-354.29278667,0.00018492,2]
[330633939,1719673845046,-204.0,0.0001851,2]
[330633940,1719673845055,-299.0,0.0001851,2]
[330633941,1719673845065,-5305.62199103,0.00018538,2]
[330633942,1719673845076,-150.0,0.00018546,2]
[330633943,1719673845086,-150.0,0.00018641,2]
[330633944,1719673845095,-150.0,0.00018736,2]
[330633945,1719673845105,-150.0,0.00018831,2]
[330633946,1719673845115,-24636.66392128,0.00018849,2]
[330633947,1719673845125,-150.0,0.00018926,2]
[330633948,1719673845135,-150.0,0.00019022,2]
[330633949,1719673845144,-350.0,0.0001904,2]
[330633950,1719673845154,-600.0,0.00019047,2]
[330633951,1719673845163,-1000.0,0.00019075,2]
[330633952,1719673845173,-716.21074661,0.00019098,2]
[330633953,1719673845183,-150.0,0.00019117,2]
[330633954,1719673845192,-164.3261346,0.00019169,2]
[330633955,1719673845203,-500.0,0.00019178,2]
[330633956,1719673845212,-500.0,0.00019178,2]
[330633957,1719673845222,-497.72822381,0.00019178,2]
[330633958,1719673845231,-500.0,0.00019178,2]
[330633959,1719673845241,-500.0,0.00019178,2]
[330633960,1719673845250,-254.78504442,0.00019178,2]
[330633961,1719673845260,-500.0,0.00019178,2]
[330633962,1719673845269,-500.0,0.00019178,2]
[330633963,1719673845279,-500.0,0.00019178,2]
[330633964,1719673845288,-500.0,0.00019178,2]
[330633965,1719673845297,-500.0,0.00019178,2]
[330633966,1719673845307,-500.0,0.00019178,2]
[330633967,1719673845316,-500.0,0.00019178,2]
[330633968,1719673845325,-500.0,0.00019178,2]
[330633969,1719673845335,-500.0,0.00019178,2]
[330633970,1719673845345,-500.0,0.00019178,2]
[330633971,1719673845355,-500.0,0.00019178,2]
[330633972,1719673845364,-500.0,0.00019178,2]
[330633973,1719673845374,-500.0,0.00019178,2]
[330633974,1719673845384,-500.0,0.00019178,2]
[330633975,1719673845394,-500.0,0.00019178,2]
[330633976,1719673845403,-500.0,0.00019178,2]
[330633977,1719673845412,-500.0,0.00019178,2]
[330633978,1719673845422,-500.0,0.00019178,2]
[330633979,1719673845431,-500.0,0.00019178,2]
[330633980,1719673845441,-387.69533236,0.00019178,2]
[330633981,1719673845451,-500.0,0.00019178,2]
[330633982,1719673845460,-500.0,0.00019178,2]
[330633983,1719673845469,-500.0,0.00019178,2]
[330633984,1719673845480,-167.30600207,0.00019178,2]
[330633985,1719673845489,-195.41092035,0.00019178,2]
[330633986,1719673845500,-500.0,0.00019178,2]
[330633987,1719673845509,-500.0,0.00019178,2]
[330633988,1719673845519,-500.0,0.00019178,2]
[330633989,1719673845529,-500.0,0.00019178,2]
[330633990,1719673845539,-500.0,0.00019178,2]
[330633991,1719673845548,-500.0,0.00019178,2]
[330633992,1719673845558,-356.15259055,0.00019178,2]
[330633993,1719673845568,-500.0,0.00019178,2]
[330633994,1719673845577,-177.15,0.00019178,2]
[330633995,1719673845587,-150.0,0.00019178,2]
[330633996,1719673845597,-250.0,0.00019178,2]
[330633997,1719673845607,-150.0,0.00019212,4]
[330633998,1719673845617,-5305.62199103,0.00019304,2]
[330633999,1719673845626,-150.0,0.00019307,4]
[330634000,1719673845635,-11644.48,0.00019339,2]
[330634001,1719673845645,-150.0,0.00019402,4]
[330634002,1719673845655,-150.0,0.00019497,4]
[330634003,1719673845665,-356.0,0.000195,2]
[330634004,1719673845675,-225.0,0.000195,2]
[330634005,1719673845686,-256.39919956,0.00019547,2]
[330634006,1719673845695,-450.0,0.00019588,2]
[330634007,1719673845705,-150.0,0.00019592,4]
[330634008,1719673845715,-1873.93904552,0.0001967,2]
[330634009,1719673845725,-150.0,0.00019683,2]
[330634010,1719673845736,-150.0,0.00019687,4]
[330634011,1719673845751,-900.0,0.000197,7]
[330634012,1719673845762,-15704.611491,0.0001972,2]
[330634013,1719673845773,-17087.251738,0.0001972,2]
[330634014,1719673845783,-10095.444664,0.0001972,2]
[330634015,1719673845793,-150.0,0.00019726,2]
[330634016,1719673845803,-150.0,0.00019728,2]
[330634017,1719673845813,-150.0,0.00019736,2]
[330634018,1719673845825,-150.0,0.00019742,2]
[330634019,1719673845836,-150.0,0.00019752,2]
[330634020,1719673845845,-150.0,0.00019762,2]
[330634021,1719673845855,-150.0,0.00019767,2]
[330634022,1719673845864,-150.0,0.00019772,2]
[330634023,1719673845873,-150.0,0.00019782,4]
[330634024,1719673845882,-150.0,0.00019787,2]
[330634025,1719673845892,-150.0,0.00019787,2]
[330634026,1719673845901,-150.0,0.00019789,2]
[330634027,1719673845911,-150.0,0.0001979,2]
[330634028,1719673845920,-150.0,0.00019794,2]
[330634029,1719673845930,-150.0,0.00019797,2]
[330634030,1719673845939,-150.0,0.000198,2]
[330634031,1719673845949,-1200.0,0.000198,7]
[330634032,1719673845958,-150.0,0.00019802,2]
[330634033,1719673845968,-150.0,0.00019816,2]
[330634034,1719673845978,-150.0,0.00019821,2]
[330634035,1719673845987,-151.0,0.00019828,2]
[330634036,1719673845997,-150.0,0.00019834,2]
[330634037,1719673846006,-150.0,0.00019836,2]
[330634038,1719673846016,-150.0,0.00019836,2]
[330634039,1719673846026,-200.0,0.00019838,2]
[330634040,1719673846036,-500.0,0.00019839,2]
[330634041,1719673846046,-200.0,0.00019839,2]
[330634042,1719673846056,-600.0,0.00019841,2]
[330634043,1719673846066,-151.0,0.00019843,2]
[330634044,1719673846078,-151.0,0.00019843,2]
[330634045,1719673846087,-151.0,0.00019843,2]
[330634046,1719673846096,-151.0,0.00019843,2]
[330634047,1719673846105,-179.49623,0.00019843,2]
[330634048,1719673846118,-151.0,0.00019843,2]
[330634049,1719673846128,-151.0,0.00019843,2]
[330634050,1719673846138,-477.931669,0.00019843,2]
[330634051,1719673846148,-150.0,0.00019843,2]
[330634052,1719673846158,-150.0,0.00019844,2]
[330634053,1719673846168,-150.0,0.00019855,2]
[330634054,1719673846177,-150.0,0.0001986,2]
[330634055,1719673846187,-150.0,0.00019863,2]
[330634056,1719673846196,-150.0,0.00019869,2]
[330634058,1719673846207,-150.0,0.00019877,4]
[330634060,1719673846216,-150.0,0.00019878,2]
[330634062,1719673846226,-150.0,0.00019882,2]
[330634064,1719673846235,-150.0,0.00019886,2]
[330634066,1719673846245,-150.0,0.00019889,2]
[330634068,1719673846255,-151.0,0.0001989,2]
[330634070,1719673846264,-153.003556,0.0001989,2]
[330634071,1719673846274,-153.003556,0.0001989,2]
[330634072,1719673846284,-151.0,0.0001989,2]
[330634073,1719673846294,-186.126762,0.0001989,2]
[330634074,1719673846303,-151.0,0.0001989,2]
[330634075,1719673846312,-151.0,0.0001989,2]
[330634076,1719673846323,-151.0,0.0001989,2]
[330634077,1719673846334,-155.343404,0.0001989,2]
[330634078,1719673846343,-334.204094,0.0001989,2]
[330634079,1719673846352,-334.204094,0.0001989,2]
[330634080,1719673846361,-151.0,0.0001989,2]
[330634081,1719673846371,-151.0,0.0001989,2]
[330634083,1719673846380,-151.0,0.0001989,2]
[330634084,1719673846390,-151.0,0.0001989,2]
[330634085,1719673846399,-232.084032,0.0001989,2]
[330634086,1719673846409,-5828.0,0.0001989,2]
[330634087,1719673846418,-576.0,0.0001989,2]
[330634088,1719673846427,-150.0,0.00019897,2]
[330634089,1719673846437,-7738.15533898,0.00019899,2]
[330634090,1719673846451,-633.56217276,0.00019899,2]
[330634093,1719673848229,-182.44464907,0.00018,2]
[330634094,1719673848238,-182.44464907,0.00018,2]
[330634095,1719673848248,-182.44464907,0.00018,2]
[330634096,1719673848258,-182.44464907,0.00018,2]
[330634097,1719673848267,-182.44464907,0.00018,2]
[330634098,1719673848277,-182.44464907,0.00018,2]
[330634099,1719673848287,-182.44464907,0.00018,2]
[330634100,1719673848296,-182.44464907,0.00018,2]
[330634101,1719673848305,-182.44464907,0.00018,2]
[330634102,1719673848314,-182.44464907,0.00018,2]
[330634103,1719673848325,-182.44464907,0.00018,2]
[330634104,1719673848336,-3123.22447601,0.00018487,2]
[330634105,1719673848346,-1628.28248826,0.00019899,2]
[330634106,1719673848356,-151.0,0.00019899,2]
[330634107,1719673848366,-151.0,0.00019899,2]
[330634108,1719673848376,-151.0,0.00019899,2]
[330634109,1719673848385,-912.688682,0.00019899,2]
[330634110,1719673848395,-912.688682,0.00019899,2]
[330634111,1719673848405,-253.900493,0.00019899,2]
[330634112,1719673848415,-151.0,0.00019899,2]
[330634113,1719673848424,-253.900493,0.00019899,2]
[330634114,1719673848434,-151.0,0.00019899,2]
[330634115,1719673848444,-151.0,0.00019899,2]
[330634116,1719673848453,-151.0,0.00019899,2]
[330634117,1719673848463,-151.0,0.00019899,2]
[330634118,1719673848473,-549.12671,0.00019899,2]
[330634119,1719673848482,-152.843831,0.00019899,2]
[330634120,1719673848491,-549.12671,0.00019899,2]
[330634121,1719673848501,-151.0,0.00019899,2]
[330634122,1719673848511,-151.0,0.00019899,2]
[330634123,1719673848519,-151.0,0.00019899,2]
[330634124,1719673848529,-151.0,0.00019899,2]
[330634125,1719673848540,-151.0,0.00019899,2]
[330634126,1719673848550,-514.789842,0.00019899,2]
[330634127,1719673848559,-151.0,0.00019899,2]
[330634128,1719673848569,-514.789842,0.00019899,2]
[330634129,1719673848578,-151.0,0.00019899,2]
[330634130,1719673848588,-1028.124969,0.00019899,2]
[330634131,1719673848598,-151.0,0.00019899,2]
[330634132,1719673848608,-1028.124969,0.00019899,2]
[330634133,1719673848617,-727.705841,0.00019899,2]
[330634134,1719673848627,-727.705841,0.00019899,2]
[330634135,1719673848636,-151.0,0.00019899,2]
[330634136,1719673848645,-151.0,0.00019899,2]
[330634137,1719673848655,-151.0,0.00019899,2]
[330634138,1719673848664,-151.0,0.00019899,2]
[330634139,1719673848674,-151.0,0.00019899,2]
[330634140,1719673848683,-542.036852,0.00019899,2]
[330634141,1719673848693,-151.0,0.00019899,2]
[330634142,1719673848703,-542.036852,0.00019899,2]
[330634143,1719673848712,-151.0,0.00019899,2]
[330634144,1719673848722,-427.127902,0.00019899,2]
[330634145,1719673848732,-427.127902,0.00019899,2]
[330634146,1719673848745,-468.406853,0.00019899,2]
[330634147,1719673848755,-151.0,0.00019899,2]
[330634148,1719673848765,-468.406853,0.00019899,2]
[330634149,1719673848775,-209.018734,0.00019899,2]
[330634150,1719673848785,-151.0,0.00019899,2]
[330634151,1719673848795,-151.0,0.00019899,2]
[330634152,1719673848805,-151.0,0.00019899,2]
[330634153,1719673848814,-273.784529,0.00019899,2]
[330634154,1719673848827,-151.0,0.00019899,2]
[330634155,1719673848836,-4567.924899,0.00019899,2]
[330634156,1719673848846,-4567.924899,0.00019899,2]
[330634157,1719673848855,-151.0,0.00019899,2]
[330634158,1719673848865,-151.0,0.00019899,2]
[330634159,1719673848875,-151.0,0.00019899,2]
[330634160,1719673848884,-151.0,0.00019899,2]
[330634161,1719673848894,-151.0,0.00019899,2]
[330634162,1719673848903,-151.0,0.00019899,2]
[330634163,1719673848913,-151.0,0.00019899,2]
[330634164,1719673848923,-151.0,0.00019899,2]
[330634165,1719673848932,-335.919871,0.00019899,2]
[330634166,1719673848942,-335.919871,0.00019899,2]
[330634167,1719673848951,-151.0,0.00019899,2]
[330634168,1719673848961,-151.0,0.00019899,2]
[330634169,1719673848971,-151.0,0.00019899,2]
[330634170,1719673848980,-151.0,0.00019899,2]
[330634171,1719673848990,-211.93875,0.00019899,2]
[330634172,1719673849336,-151.0,0.00019899,2]
[330634173,1719673849456,-317.438896,0.00019899,2]
[330634174,1719673849469,-317.438896,0.00019899,2]
[330634175,1719673849478,-151.0,0.00019899,2]
[330634176,1719673849488,-490.0,0.000199,2]
[330634177,1719673849497,-1500.0,0.000199,7]
[330634178,1719673849507,-5649.89415828,0.000199,2]
[330634179,1719673849517,-1598.93707372,0.000199,2]
[330634180,1719673849526,-187.95847283,0.000199,2]
[330634181,1719673849537,-5831.85420384,0.000199,2]
[330634182,1719673849547,-152.6637232,0.00019907,2]
[330634183,1719673849557,-150.0,0.0001991,2]
[330634184,1719673849567,-150.0,0.00019912,2]
[330634185,1719673849578,-150.0,0.00019916,2]
[330634186,1719673849587,-150.0,0.00019917,2]
[330634187,1719673849596,-150.0,0.0001992,2]
[330634188,1719673849606,-150.0,0.00019929,2]
[330634189,1719673849616,-150.0,0.00019936,2]
[330634190,1719673849625,-150.0,0.00019938,2]
[330634191,1719673849635,-158.9312788,0.00019939,2]
[330634192,1719673849645,-1033.63647803,0.00019939,2]
[330634193,1719673849655,-150.0,0.00019954,2]
[330634194,1719673849665,-15704.611491,0.00019967,2]
[330634195,1719673849677,-7448.71210526,0.00019967,2]
[330634196,1719673994452,500.0,0.00011199,2]
[330634197,1719673994499,500.0,0.00011199,2]
[330634198,1719673994713,500.0,0.00011199,2]
[330634199,1719673995065,500.0,0.00011199,2]
[330634200,1719673995536,500.0,0.00011199,2]
[330634201,1719673995880,500.0,0.00011199,2]
[330634202,1719673996243,500.0,0.00011199,2]
[330634203,1719673996714,500.0,0.00011199,2]
[330634204,1719673998669,15423.93998128,0.00011199,2]
[330634205,1719674000308,500.0,0.00011199,2]
[330634206,1719674000910,656.0,0.00011199,2]
[330634207,1719674009484,5593.62205483,0.00011199,2]
[330634208,1719674019849,4713.87892323,0.00011199,2]
[330634209,1719674030788,10541.24799187,0.00011199,2]
[330634210,1719674033099,6254.03138651,0.00011199,2]
[330634211,1719674053431,3071.57439988,0.00011199,2]
[330634212,1719674105187,955.73097325,0.00011199,2]
[330634213,1719674108831,2375.40634291,0.00011199,2]
[330634214,1719674152677,1075.22218458,0.00011199,2]
[330634215,1719674168706,543.96475932,0.00011199,2]
[330634218,1719674300643,155.0,0.00011199,2]
[330634219,1719674334168,150.0,0.00026,120]
[330634225,1719674625769,290.97986156,0.00011199,2]
[330634226,1719674647716,155.0,0.00011199,2]
[330634227,1719674685691,155.53202751,0.00011199,2]
[330634228,1719674701385,520.06850352,0.00011199,2]
[330634229,1719674702692,155.26295347,0.00011199,2]
[330634230,1719674768152,155.50003618,0.00011199,2]
[330634231,1719674785770,309.83496123,0.00011199,2]
[330634234,1719674817820,307.59113526,0.00011199,2]
[330634241,1719675031634,-211.46410949,0.00012314,2]
[330634243,1719675031643,-182.43589051,0.00013128,2]
[330634256,1719675031796,-817.56410949,0.00013128,2]
[330634257,1719675031807,-270.70234545,0.00013472,2]
[330634258,1719675031821,-14.15335944,0.00013472,2]
[330634259,1719675031831,-155.37753246,0.00013472,2]
[330634260,1719675031842,-537.93879391,0.00013516,2]
[330634261,1719675031852,-339.46001548,0.00013543,2]
[330634262,1719675031862,-23934.54755633,0.00013574,2]
[330634263,1719675031873,-3309.0,0.000154,2]
[330634264,1719675031883,-602.01,0.00016354,2]
[330634265,1719675031895,-12758.73684644,0.00016808,2]
[330634266,1719675031906,-3967.2200595,0.00017444,2]
[330634267,1719675031915,-7238.87800313,0.00017464,2]
[330634268,1719675031924,-3967.36388917,0.00017807,2]
[330634269,1719675031933,-5000.0,0.00017807,2]
[330634270,1719675031943,-3967.36388917,0.00017807,2]
[330634272,1719675031952,-5000.0,0.00017807,2]
[330634274,1719675031962,-2373.57182662,0.00017999,2]
[330634275,1719675031972,-150.0,0.00018,2]
[330634276,1719675031981,-150.0,0.00018095,2]
[330634277,1719675031990,-1346.06,0.00018134,2]
[330634278,1719675032000,-150.0,0.00018134,2]
[330634279,1719675032009,-1820.0,0.00018135,2]
[330634280,1719675032019,-358.0,0.00018135,2]
[330634281,1719675032028,-5172.0,0.00018135,2]
[330634282,1719675032039,-30978.887,0.00018135,2]
[330634283,1719675032049,-291.0,0.00018135,2]
[330634284,1719675032060,-1557.017,0.00018135,2]
[330634285,1719675032070,-812.0,0.00018135,2]
[330634286,1719675032080,-184.84,0.00018156,2]
[330634287,1719675032090,-250.0,0.00018167,2]
[330634288,1719675032100,-250.0,0.00018182,2]
[330634289,1719675032110,-600.0,0.0001819,2]
[330634290,1719675032120,-150.0,0.0001819,2]
[330634291,1719675032129,-150.0,0.00018286,2]
[330634292,1719675032138,-2000.0,0.00018299,3]
[330634293,1719675032146,-150.0,0.00018381,2]
[330634295,1719675032156,-23900.0,0.00018453,2]
[330634297,1719675032166,-150.0,0.00018476,2]
[330634298,1719675032175,-172.18,0.00018484,2]
[330634299,1719675032184,-11644.48,0.00018533,2]
[330634300,1719675032194,-150.0,0.00018571,2]
[330634301,1719675032203,-664.17,0.000186,2]
[330634302,1719675032216,-602.01,0.00018618,2]
[330634303,1719675032226,-150.0,0.00018667,2]
[330634304,1719675032236,-1133.76952232,0.00018717,2]
[330634305,1719675032245,-1044.76716236,0.00018759,2]
[330634306,1719675032255,-150.0,0.00018762,2]
[330634307,1719675032265,-293.19487746,0.00018764,2]
[330634308,1719675032274,-1500.0,0.00018835,2]
[330634309,1719675032284,-660.25476663,0.00018835,2]
[330634310,1719675032296,-150.0,0.00018857,2]
[330634311,1719675032306,-650.83910401,0.00018864,2]
[330634312,1719675032316,-491.56025274,0.00018864,2]
[330634313,1719675032325,-527.81158355,0.00018864,2]
[330634314,1719675032334,-162.37573768,0.00018889,2]
[330634315,1719675032344,-162.37573768,0.00018889,2]
[330634316,1719675032353,-155.0,0.00018899,2]
[330634317,1719675032362,-305.26949333,0.00018899,2]
[330634318,1719675032372,-194.87156642,0.00018899,2]
[330634319,1719675032381,-155.28848889,0.00018899,2]
[330634320,1719675032391,-346.03148912,0.00018899,2]
[330634321,1719675032401,-155.59662566,0.00018899,2]
[330634322,1719675032410,-194.02066443,0.00018899,2]
[330634323,1719675032420,-518.26142382,0.00018899,2]
[330634324,1719675032428,-380.58928978,0.00018899,2]
[330634325,1719675032438,-164.4334539,0.00018899,2]
[330634326,1719675032447,-218.40264018,0.00018899,2]
[330634327,1719675032456,-202.21488099,0.00018899,2]
[330634328,1719675032466,-155.14159365,0.00018899,2]
[330634329,1719675032475,-202.44445,0.00018899,2]
[330634330,1719675032484,-625.50090201,0.00018899,2]
[330634331,1719675032494,-189.89538831,0.00018899,2]
[330634332,1719675032504,-162.37573768,0.00018909,2]
[330634333,1719675032513,-162.37573768,0.00018909,2]
[330634334,1719675032522,-152.64,0.00018915,2]
[330634335,1719675032532,-236.53352134,0.00018919,2]
[330634336,1719675032541,-251.69725193,0.00018919,2]
[330634337,1719675032550,-155.38782206,0.00018919,2]
[330634338,1719675032559,-158.25040673,0.00018919,2]
[330634339,1719675032568,-155.0,0.00018919,2]
[330634340,1719675032577,-366.11090361,0.00018919,2]
[330634341,1719675032586,-202.05047868,0.00018919,2]
[330634342,1719675032595,-155.0,0.00018919,2]
[330634343,1719675032605,-162.37573768,0.00018942,2]
[330634344,1719675032616,-246.51,0.00018948,2]
[330634345,1719675032626,-150.0,0.00018952,2]
[330634346,1719675032635,-155.14682893,0.00018999,2]
[330634347,1719675032644,-155.52012646,0.00018999,2]
[330634348,1719675032653,-155.0,0.00018999,2]
[330634349,1719675032663,-196.12854204,0.00018999,2]
[330634350,1719675032673,-150.0,0.00019048,2]
[330634351,1719675032682,-155.0,0.00019077,2]
[330634352,1719675032692,-162.37573768,0.00019088,2]
[330634353,1719675032702,-716.21074661,0.00019098,2]
[330634354,1719675032712,-150.0,0.00019143,2]
[330634355,1719675032723,-150.0,0.00019178,2]
[330634356,1719675032733,-250.0,0.00019178,2]
[330634357,1719675032744,-162.37573768,0.00019219,2]
[330634358,1719675032754,-157.09861622,0.00019229,2]
[330634359,1719675032764,-523.44090366,0.00019229,2]
[330634360,1719675032774,-150.0,0.00019238,4]
[330634361,1719675032784,-150.0,0.00019333,4]
[330634362,1719675032793,-162.37573768,0.00019341,2]
[330634363,1719675032802,-162.37573768,0.00019344,2]
[330634364,1719675032811,-1935.0789396,0.00019351,2]
[330634365,1719675032822,-1094.50291825,0.00019354,2]
[330634366,1719675032833,-283.44364674,0.00019399,2]
[330634367,1719675032842,-150.0,0.00019429,4]
[330634368,1719675032852,-1244.80699978,0.00019468,2]
[330634369,1719675032862,-150.0,0.00019524,4]
[330634370,1719675032872,-1072.4090755,0.00019568,2]
[330634371,1719675032881,-1131.36263634,0.00019568,2]
[330634372,1719675032890,-150.0,0.00019619,4]
[330634373,1719675032899,-1935.07893951,0.00019662,2]
[330634374,1719675032908,-150.0,0.00019683,2]
[330634375,1719675032917,-356.0,0.000197,2]
[330634376,1719675032927,-225.0,0.000197,2]
[330634377,1719675032936,-150.0,0.00019714,4]
[330634378,1719675032945,-687.748777,0.0001972,2]
[330634379,1719675032954,-167.509277,0.0001972,2]
[330634380,1719675032965,-3140.922298,0.0001972,2]
[330634381,1719675032975,-1757.425307,0.0001972,2]
[330634382,1719675032984,-174.650504,0.0001972,2]
[330634383,1719675032994,-3417.450348,0.0001972,2]
[330634384,1719675033003,-2019.088932,0.0001972,2]
[330634385,1719675033012,-155.0,0.00019725,2]
[330634386,1719675033021,-150.0,0.00019727,2]
[330634387,1719675033030,-150.0,0.00019732,2]
[330634388,1719675033039,-150.0,0.00019733,2]
[330634389,1719675033049,-150.0,0.0001974,2]
[330634390,1719675033058,-150.0,0.00019744,2]
[330634391,1719675033067,-150.0,0.00019745,2]
[330634392,1719675033077,-150.0,0.0001975,2]
[330634393,1719675033086,-150.0,0.00019751,2]
[330634394,1719675033096,-1244.80699974,0.00019766,2]
[330634395,1719675033106,-296.70779,0.0001977,2]
[330634396,1719675033115,-150.0,0.00019773,2]
[330634397,1719675033126,-150.0,0.00019782,2]
[330634398,1719675033136,-150.0,0.00019795,2]
[330634399,1719675033146,-2199.5785,0.00019799,2]
[330634400,1719675033156,-150.0,0.000198,2]
[330634401,1719675033166,-150.0,0.0001981,4]
[330634402,1719675033175,-150.0,0.00019818,2]
[330634403,1719675033185,-150.0,0.00019825,2]
[330634404,1719675033195,-150.0,0.00019825,2]
[330634405,1719675033205,-151.0,0.00019828,2]
[330634406,1719675033224,-150.0,0.00019829,2]
[330634407,1719675033237,-26434.3915,0.00019839,2]
[330634408,1719675033247,-165.1809,0.00019839,2]
[330634409,1719675033257,-4523.8883,0.00019839,2]
[330634410,1719675033266,-500.0,0.00019839,2]
[330634411,1719675033276,-200.0,0.00019839,2]
[330634412,1719675033285,-150.0,0.00019842,2]
[330634413,1719675033294,-150.0,0.00019848,2]
[330634414,1719675033304,-150.0,0.00019851,2]
[330634415,1719675033313,-150.0,0.00019877,2]
[330634416,1719675033323,-1251.2596,0.00019888,2]
[330634417,1719675033333,-179.53343583,0.00019888,2]
[330634418,1719675033342,-150.0,0.00019888,2]
[330634419,1719675033352,-224.34929965,0.00019888,2]
[330634420,1719675033361,-150.0,0.00019891,2]
[330634421,1719675033371,-150.0,0.00019895,2]
[330634422,1719675033380,-150.0,0.00019895,2]
[330634423,1719675033389,-1000.0,0.000199,2]
[330634424,1719675033399,-215.0,0.000199,2]
[330634425,1719675033408,-490.0,0.000199,2]
[330634426,1719675033418,-1975.74401494,0.000199,2]
[330634427,1719675033427,-173.9125901,0.000199,2]
[330634428,1719675033437,-7738.1554,0.000199,2]
[330634429,1719675033446,-2597.7211,0.000199,2]
[330634430,1719675033455,-168.42217057,0.000199,2]
[330634431,1719675033465,-313.5682617,0.000199,2]
[330634432,1719675033475,-150.0,0.00019905,4]
[330634433,1719675033484,-150.0,0.00019918,2]
[330634434,1719675033494,-150.0,0.00019922,2]
[330634435,1719675033503,-150.0,0.00019923,2]
[330634436,1719675033512,-150.0,0.00019924,2]
[330634437,1719675033522,-150.0,0.00019944,2]
[330634438,1719675033532,-150.0,0.00019946,2]
[330634439,1719675033542,-150.0,0.00019952,2]
[330634440,1719675033551,-150.0,0.00019957,2]
[330634441,1719675033561,-150.0,0.00019961,2]
[330634442,1719675033570,-150.0,0.00019963,2]